Cogmind - Beta 11.1 @@@ ROGUE MODE // 2022.05.13 @ 13:13:59 Player: Decinym Result: Destroyed by DAS Turret with DAS Cannon Performance ------------- Evolutions (1) 500 Regions Visited (5) 1000 Robots Destroyed (41) 205 Value Destroyed (1111) 1111 Prototype IDs (37) 740 Alien Tech Used (0) 0 Bonus (331) 331 TOTAL SCORE: 3887 Bonus ------- Follower Combat Kills 46 Aligned with FarCom 300 Friendly Fire -15 Cogmind --------- Core Integrity 0/400 Matter 241/300 Energy 100/100 System Corruption 0% Temperature Cool (0) Movement Walking (260) Ox2 Location -9/Exiles Parts ------- > --- POWER (1) -------- (None) > --- PROPULSION (2) --- Aluminum Leg > --- UTILITY (4) ------ Large Storage Unit Improved Targeting Computer > --- WEAPON (2) ------- Assault Rifle Heavy Assault Rifle > --- INVENTORY (15) --- Aluminum Leg Improved Heat Sink Small Laser Particle Gun Particle Gun Assault Rifle Light Assault Rifle Mining Claw Peak State ------------ > --- POWER ------------ Light Angular Momentum Engine > --- PROPULSION ------- Light Treads Light Treads > --- UTILITY ---------- Large Storage Unit Improved Targeting Computer Heavy Armor Plating > --- WEAPON ----------- Beam Rifle Beam Rifle > --- INVENTORY -------- Light Deuterium Engine Light Treads Improved Heat Sink Improved Heat Sink Targeting Computer Heavy Armor Plating Hardened Medium Armor Plating Shield Generator Shield Generator Assault Rifle Assault Rifle Mini Grenade Launcher Mini Grenade Launcher Mining Claw [Rating: 23] Favorites ----------- Power Light Deuterium Engine Engine Light Deuterium Engine Propulsion Light Treads Treads Light Treads Leg Aluminum Leg Utility Hardened Medium Armor Plating Device Shield Generator Storage Large Storage Unit Processor Improved Targeting Computer Protection Hardened Medium Armor Plating Weapon Beam Rifle Energy Gun Beam Rifle Ballistic Gun Assault Rifle Launcher Mini Grenade Launcher Special Melee Weapon Datajack Build | -11 -10 -10 -9 -9 -9 ------- Run | Scr Mat Min Mat Min Exi Slots Evolved 2 | . . . 2 . . Power . | . . . . . . Propulsion . | . . . . . . Utility 2 | . . . 2 . . Weapon . | . . . . . . Parts Attached 44 | . 6 8 9 2 19 Power 3 | . . 1 1 . 1 Engine 3 | . . 1 1 . 1 Core . | . . . . . . Reactor . | . . . . . . Propulsion 9 | . . 5 . 1 3 Treads 3 | . . 2 . 1 . Leg 6 | . . 3 . . 3 Wheel . | . . . . . . Hover . | . . . . . . Flight . | . . . . . . Utility 13 | . 4 . 4 . 5 Device 2 | . . . . . 2 Storage 2 | . 1 . 1 . . Processor 3 | . 3 . . . . Hackware . | . . . . . . Protection 6 | . . . 3 . 3 Artifact . | . . . . . . Weapon 19 | . 2 2 4 1 10 Energy Gun 3 | . 2 1 . . . Energy Cannon . | . . . . . . Ballistic Gun 10 | . . . 3 1 6 Ballistic Cannon . | . . . . . . Launcher 5 | . . 1 1 . 3 Special Weapon . | . . . . . . Impact Weapon . | . . . . . . Slashing Weapon . | . . . . . . Piercing Weapon . | . . . . . . Special Melee Weapon 1 | . . . . . 1 Unidentified Prototypes . | . . . . . . Parts Lost 19 | . . . 4 1 14 Power 3 | . . . 1 . 2 Propulsion 5 | . . . . 1 4 Utility 6 | . . . 1 . 5 Weapon 5 | . . . 2 . 3 Highest Loss Streak 6 | . . . 1 1 6 To Critical Strikes 3 | . . . . . 3 Average Slot Usage (%) 98 | . 95 100 93 99 97 Engine 11 | . 14 14 10 11 10 Treads 16 | . . 6 22 21 19 Leg 7 | . 28 21 . . 1 Device 1 | . . . . . 5 Storage 11 | . 14 14 11 11 11 Processor 11 | . 10 14 11 11 11 Protection 12 | . . . 15 22 15 Energy Gun 9 | . 22 27 11 . . Ballistic Gun 13 | . 4 . 10 22 19 Naked Turns . | . . . . . . Heaviest Build 50 | 11 31 35 50 44 44 Greatest Support 40 | 20 20 40 40 40 40 Greatest Overweight (x) 11 | . 1 1 1 1 11 Average Overweight (x) . | . . . 1 1 . Largest Inventory Capacity 15 | 8 15 15 15 15 15 Average Capacity 14 | 8 14 15 15 15 15 Most Carried 15 | 5 14 15 15 15 15 Average Carried 14 | 5 11 14 14 14 13 Final Capacity 15 | 8 15 15 15 15 15 Final Carried 15 | 4 13 15 15 15 8 Class Distribution -------------------- 100% | Mutant Dominant Class ---------------- Mutant | -10/Materials Mutant | -10/Mines Mutant | -9/Materials Mutant | -9/Mines Mutant | -9/Exiles Resources | -11 -10 -10 -9 -9 -9 ----------- Run | Scr Mat Min Mat Min Exi Matter Collected 987 | 200 40 120 131 102 394 Remotely . | . . . . . . Salvage Created 1506 | . 109 717 352 195 133 Parts 73 | . 3 38 18 14 . Haulers Intercepted . | . . . . . . Recyclers Shooed 3 | . 1 1 . 1 . Parts Field Recycled . | . . . . . . Retrieved Matter . | . . . . . . Parts Self-Destructed . | . . . . . . Prevented . | . . . . . . Kills | -11 -10 -10 -9 -9 -9 ------- Run | Scr Mat Min Mat Min Exi Combat Hostiles Destroyed 36 | . 2 17 8 6 3 Guns 26 | . 2 12 5 6 1 AOE 9 | . . 4 3 . 2 Classes Destroyed 10 | . 2 3 3 1 1 Worker 1 | . . . 1 . . Tunneler 1 | . . 1 . . . Recycler 3 | . . 1 1 1 . Operator 1 | . . . 1 . . Watcher 1 | . 1 . . . . Swarmer 8 | . . . 4 4 . Grunt 19 | . 2 15 1 1 . Brawler 1 | . . . . 1 . Sentry 5 | . . 2 3 . . Assembled 2 | . . . . . 2 Best Kill Streak 5 | . 1 4 5 4 2 Combat Bots Only 4 | . 1 4 4 4 2 Max Kills in Single Turn 3 | . 1 2 3 1 2 Gunslinging 1 | . . 1 . . . Exploded 3 | . . 2 3 . 2 Melee . | . . . . . . Uniques/NPCs Destroyed 1 | . . . . . 1 8R-AWN (-9/Exiles) Combat | -11 -10 -10 -9 -9 -9 -------- Run | Scr Mat Min Mat Min Exi Damage Taken 3294 | . 95 501 688 126 1884 Core 552 | . 41 73 41 10 387 Absorbed by Shields 215 | . . . . . 215 Core Remaining (%) 77 | 100 . 54 . . . Volleys Fired 166 | . 9 37 43 19 58 Largest 2 | . 2 2 2 2 2 Hottest 112 | . 112 112 112 40 53 Shots Fired 297 | . 18 72 67 38 102 Gun 287 | . 18 70 66 38 95 Cannon . | . . . . . . Launcher 10 | . . 2 1 . 7 Special . | . . . . . . Kinetic 172 | . . . 39 38 95 Thermal 115 | . 18 70 27 . . Explosive 10 | . . 2 1 . 7 Electromagnetic . | . . . . . . Robot Hit Streak 14 | . 9 11 12 6 14 Robot Miss Streak 5 | . 1 3 5 4 3 Penetration Max . | . . . . . . Secondary Targets 6 | . . 4 . 2 . Max Gunslinging Chain 1 | . . 1 . 1 . Shots Hit Robots 200 | . 13 49 41 23 74 Core Hits 87 | . 6 28 17 12 24 Critical Kills . | . . . . . . Critical Parts Destroyed 1 | . . . . . 1 Critical Strikes 11 | . . 5 4 . 2 Burn 9 | . . 5 4 . . Destroy 2 | . . . . . 2 Melee Attacks 4 | . . . . . 4 Impact . | . . . . . . Slashing . | . . . . . . Piercing . | . . . . . . Sneak Attacks 4 | . . . . . 4 Combat Hostiles . | . . . . . . Follow-up Attacks . | . . . . . . Damage Inflicted 3301 | . 200 1020 635 252 1194 Guns 2525 | . 189 744 474 252 866 Cannons . | . . . . . . Explosions 750 | . . 261 161 . 328 Melee . | . . . . . . Ramming 26 | . 11 15 . . . Kinetic 1363 | . . . 245 252 866 Thermal 1162 | . 189 744 229 . . Explosive 750 | . . 261 161 . 328 Electromagnetic . | . . . . . . Impact . | . . . . . . Slashing . | . . . . . . Piercing . | . . . . . . Highest Corruption . | . . . . . . Average Corruption . | . . . . . . Corruption Purged . | . . . . . . Corruption Blocked . | . . . . . . Overload Shots . | . . . . . . Overflow Damage 23 | . . . . . 23 Projectiles . | . . . . . . Explosions 23 | . . . . . 23 Melee . | . . . . . . Knockbacks 1 | . . 1 . . . Impact 1 | . . 1 . . . Kinetic . | . . . . . . Secondary . | . . . . . . Self-Inflicted Damage 66 | . . . 17 . 49 Shots 2 | . . . 1 . 1 Rammed . | . . . . . . Targets Rammed 2 | . 1 1 . . . Kicked 2 | . 1 1 . . . Crushed . | . . . . . . Highest Temperature 416 | . 291 416 391 106 30 Average Temperature 112 | . 109 115 158 34 12 Received Heat Transfer 528 | . 54 240 204 30 . Effects 12 | . 4 4 4 . . Shutdowns 2 | . . 1 1 . . Energy Bleed 1 | . 1 . . . . Interference 8 | . 3 3 2 . . Damage (minor) 1 | . . . 1 . . Siege Activations . | . . . . . . Robots Corrupted . | . . . . . . Combat Hostiles . | . . . . . . Parts Fried . | . . . . . . Impact Corruptions . | . . . . . . Robots Melted 1 | . . 1 . . . Combat Hostiles 1 | . . 1 . . . Parts Melted 11 | . 1 8 2 . . Heat Transferred 3626 | . 481 2257 888 . . Parts Sabotaged . | . . . . . . Parts Stolen . | . . . . . . Parts Stripped . | . . . . . . Power Chain Reactions . | . . . . . . Missiles Intercepted . | . . . . . . Alert | -11 -10 -10 -9 -9 -9 ------- Run | Scr Mat Min Mat Min Exi Peak Influence 252 | . 83 167 252 176 . Initial 56 | . . 31 56 35 . Average 60 | . 29 83 97 30 . Maximum Alert Level 1 | . . . 1 . . Low Security (%) 97 | 100 100 100 85 100 . Level 1 2 | . . . 14 . . Level 2 . | . . . . . . Level 3 . | . . . . . . Level 4 . | . . . . . . Level 5 . | . . . . . . High Security . | . . . . . . Max Security . | . . . . . . Squads Dispatched 4 | . . 3 1 . . Investigation 1 | . . 1 . . . Extermination . | . . . . . . Reinforcement 1 | . . . 1 . . Assault 2 | . . 2 . . . Garrison . | . . . . . . Intercept . | . . . . . . Searches Triggered . | . . . . . . Construction Impeded . | . . . . . . Haulers Reinforced . | . . . . . . Active Scanning Responses . | . . . . . . Cargo Convoy Interrupts . | . . . . . . Stealth | -11 -10 -10 -9 -9 -9 --------- Run | Scr Mat Min Mat Min Exi Distress Signals 3 | . . . 3 . . Communications Jammed . | . . . . . . Distress Signals . | . . . . . . Times Spotted 73 | . 5 20 12 6 30 Peak Tracking Total 9 | . 2 4 3 3 9 Tactical Retreats 4 | . 1 . . . 3 Traps | -11 -10 -10 -9 -9 -9 ------- Run | Scr Mat Min Mat Min Exi Traps Triggered . | . . . . . . Indirectly . | . . . . . . Trap Hack Attempts . | . . . . . . Triggered . | . . . . . . Disarmed . | . . . . . . Reprogrammed . | . . . . . . Reused . | . . . . . . Traps Extracted . | . . . . . . Installed . | . . . . . . Triggered . | . . . . . . Exploded 3 | . . . . . 3 Machines | -11 -10 -10 -9 -9 -9 ---------- Run | Scr Mat Min Mat Min Exi Machines Disabled 6 | . . . . . 6 Max in Single Turn 1 | . . . . . 1 Machines Sabotaged . | . . . . . . Garrisons Compromised . | . . . . . . Overloaded Fab Kills . | . . . . . . Hacking | -11 -10 -10 -9 -9 -9 --------- Run | Scr Mat Min Mat Min Exi Machines Accessed 5 | . 1 1 1 . 2 Terminals 2 | . 1 . 1 . . Fabricators . | . . . . . . Repair Stations . | . . . . . . Recycling Units . | . . . . . . Scanalyzers . | . . . . . . Garrison Access . | . . . . . . Total Hacks 6 | . 2 1 1 . 2 Successful 5 | . 1 1 1 . 2 Failed 1 | . 1 . . . . Catastrophic . | . . . . . . Database Lockouts . | . . . . . . Manual 4 | . 2 . 1 . 1 Terminals 3 | . 2 . 1 . . Fabricators . | . . . . . . Repair Stations . | . . . . . . Recycling Units . | . . . . . . Scanalyzers . | . . . . . . Garrison Access . | . . . . . . Terminal Hacks 4 | . . 1 1 . 2 Record 1 | . . . . . 1 Open Door 1 | . . 1 . . . Branch Access Points 1 | . . . 1 . . EX-Prototype ID Bank 1 | . . . . . 1 Fabricator Hacks . | . . . . . . Repair Station Hacks . | . . . . . . Recycling Unit Hacks . | . . . . . . Scanalyzer . | . . . . . . Garrison Access Hacks . | . . . . . . Unauthorized Hacks 1 | . 1 . . . . Terminals 1 | . 1 . . . . Botnet 1 | . 1 . . . . Fabricators . | . . . . . . Repair Stations . | . . . . . . Recycling Units . | . . . . . . Scanalyzers . | . . . . . . Garrison Access . | . . . . . . Data Cores Recovered . | . . . . . . Used . | . . . . . . Hacking Detections 1 | . 1 . . . . Full Trace Events . | . . . . . . Feedback Events . | . . . . . . Feedback Blocked . | . . . . . . Robot Schematics Acquired . | . . . . . . Robots Built . | . . . . . . Authchips . | . . . . . . Time . | . . . . . . Total Robot Build Rating . | . . . . . . Part Schematics Acquired . | . . . . . . Parts Built . | . . . . . . Authchips . | . . . . . . Time . | . . . . . . Total Part Build Rating . | . . . . . . Parts Repaired . | . . . . . . Time . | . . . . . . Parts Recycled . | . . . . . . Recycled Matter . | . . . . . . Retrieved Matter . | . . . . . . Retrieved Components . | . . . . . . Parts Scanalyzed . | . . . . . . Part Schematics Acquired . | . . . . . . Parts Damaged . | . . . . . . Bothacking | -11 -10 -10 -9 -9 -9 ------------ Run | Scr Mat Min Mat Min Exi Used RIF Installer . | . . . . . . Robots Hacked 4 | . . . . . 4 Non-combat 3 | . . . . . 3 Combat 1 | . . . . . 1 Robot Hacks Applied 4 | . . . . . 4 parse_system 4 | . . . . . 4 Relay Couplers Released . | . . . . . . Fabnet Peak Effective % . | . . . . . . Robots Rewired . | . . . . . . Allies Hacked . | . . . . . . Hacks Repelled . | . . . . . . Allies | -11 -10 -10 -9 -9 -9 -------- Run | Scr Mat Min Mat Min Exi Total Allies 5 | . . 1 . 4 . Largest Group 3 | . . 1 . 3 3 Highest-Rated Group 40 | . . 31 . 40 40 Highest-Rated Ally 31 | . . 31 . 31 16 Total Orders 4 | . . . . . 4 STAY 3 | . . . . . 3 ROAM 1 | . . . . . 1 Ally Attacks 29 | . . 10 . 10 9 Total Damage 375 | . . 193 . 127 55 Kills 8 | . . 2 . 3 3 Allies Corrupted . | . . . . . . Allies Melted . | . . . . . . Intel | -11 -10 -10 -9 -9 -9 ------- Run | Scr Mat Min Mat Min Exi Robot Analysis Total . | . . . . . . Derelict Logs Recovered 5 | . . 3 . 2 . Drone Launches . | . . . . . . Drone Recoveries . | . . . . . . Exploration | -11 -10 -10 -9 -9 -9 ------------- Run | Scr Mat Min Mat Min Exi Turns Passed 6393 | 1 349 1557 691 1691 2104 Spaces Moved 2661 | 1 164 657 236 674 929 Core 3 | . . . . . 3 Treads 2016 | . . 223 236 674 883 Legs 642 | 1 164 434 . . 43 Wheels . | . . . . . . Hover . | . . . . . . Flight . | . . . . . . Fastest Speed 120 | 120 120 160 240 240 160 Average Speed 205 | 120 174 179 240 240 195 Slowest Speed 600 | 120 190 190 240 240 600 Overloaded Moves . | . . . . . . Propulsion Burnouts . | . . . . . . Robots Hopped . | . . . . . . Cave-ins Triggered . | . . . . . . Exploration Rate (%) 57 | 2 40 97 28 99 76 Regions Visited 5 Branch Regions 3 Pre-discovered Areas 2 | . . 1 . . 1 Known Exits Taken 3 | . 1 1 1 . . Unknown Exits Taken 2 | 1 . . . 1 . Scrap Searched 3 | . . 1 . 2 . Spaces Dug . | . . . . . . Terrain Destroyed 44 | . . 11 11 . 22 Melee . | . . . . . . Projectile . | . . . . . . AOE 44 | . . 11 11 . 22 Terrain Rammed . | . . . . . . Walls Destroyed . | . . . . . . Machines Disabled . | . . . . . . Actions | -11 -10 -10 -9 -9 -9 --------- Run | Scr Mat Min Mat Min Exi Total 3313 | 2 209 966 302 715 1119 Wait 352 | . 14 236 1 17 84 Move 2656 | . 163 656 235 673 929 Hop . | . . . . . . Pick Up 47 | . 10 12 10 2 13 Fast Attach 8 | . 5 1 . . 2 Attach 20 | . 1 . 6 1 12 Detach 2 | . 1 . . . 1 Swap 16 | . . 7 3 1 5 Drop 40 | 2 5 16 4 2 11 Fire 166 | . 9 37 43 19 58 Melee 4 | . . . . . 4 Ram . | . . . . . . Kick 2 | . 1 1 . . . Crush . | . . . . . . Escape Stasis . | . . . . . . Rewire . | . . . . . . Trap . | . . . . . . Miscellaneous . | . . . . . . Route ------- -11/Scrapyard -10/Materials (discovered 2 exits: *Mat / *Min) -10/Mines (discovered 2 exits: *Mat x2) -9/Materials (discovered 2 exits: *Min x2) -9/Mines (discovered 3 exits: [*Mat x2] / *Exi) -9/Exiles History --------- Turn | Location | Event 2 | -11/Scrapyard | Discovered new exit (range 0) 2 | -11/Scrapyard | Entered Materials 297 | -10/Materials | Discovered new exit (range 11) 297 | -10/Materials | Discovered new exit (range 3) 315 | -10/Materials | Build established: Mutant 321 | -10/Materials | Identified exit to Mines 336 | -10/Materials | Identified exit to Materials 351 | -10/Materials | Entered Mines 370 | -10/Mines | Met a Derelict testing a Signal Generator 380 | -10/Mines | Found Signal Generator 541 | -10/Mines | Learned location of Zion (-6) 958 | -10/Mines | Met a Derelict shopkeep closing up shop 1052 | -10/Mines | Excavation squad dispatched 1052 | -10/Mines | A large section of the Mines collapsed 1467 | -10/Mines | Learned Materials trap positions 1860 | -10/Mines | Discovered exit to Materials (range 8) 1908 | -10/Mines | Entered Materials 1908 | -9/Materials | Evolved 2 slots: Utility x2 1909 | -9/Materials | Loaded intel: 14 trap records 2322 | -9/Materials | Identified exit to Mines 2599 | -9/Materials | Entered Mines 2653 | -9/Mines | Received a Mining Laser from a helpful Derelict 2655 | -9/Mines | Discovered new exit (range 2) 3395 | -9/Mines | Learned 2 Materials zone layouts 3486 | -9/Mines | Deemed a non-threat by the Exiles lab entrance 3649 | -9/Mines | Learned Materials non-interactive machine intel 3872 | -9/Mines | Discovered new exit (range 11) 4047 | -9/Mines | Assisted by bots powering up and referring to "LRC-V3" 4278 | -9/Mines | Discovered new exit (range 5) 4290 | -9/Mines | Entered Exiles 4290 | -9/Exiles | Accompanied by 3 allies 4350 | -9/Exiles | Met 8R-AWN 4386 | -9/Exiles | Met EX-HEX 4463 | -9/Exiles | Met EX-BIN 4494 | -9/Exiles | Aligned with FarCom system 4497 | -9/Exiles | Given EX-Vault access code 4554 | -9/Exiles | Opened EX-Vault 4611 | -9/Exiles | Warned to stay clear of 0b10 Research branches 4685 | -9/Exiles | Met EX-DEC 4789 | -9/Exiles | Visited The Gauntlet 6038 | -9/Exiles | Attacked by the Exiles 6208 | -9/Exiles | Lost 3 parts (1p1n1u) 6253 | -9/Exiles | Destroyed 8R-AWN 6276 | -9/Exiles | Lost 4 parts (1n2u1w) 6359 | -9/Exiles | Core integrity fell below 50% 6379 | -9/Exiles | Core integrity fell below 20% 6394 | -9/Exiles | Destroyed by DAS Turret with DAS Cannon Last Messages --------------- 06306_ Acquired Sml. Laser. 06309_ Acquired Imp. Heat Sink. 06313_ Acquired 10 matter. 06317_ Acquired Particle Gun. 06320_ Acquired Assault Rifle. 06323_ Acquired Lgt. Assault Rifle. 06359_ Mni. Grenade Launcher destroyed. 06360_ Knocked back. 06374_ Hvy. Armor Plating destroyed. 06374_ Knocked back. 06375_ Acquired 13 matter. 06376_ Machine disabled. 06376_ Knocked back. 06386_ Aluminum Leg destroyed. 06388_ Mni. Grenade Launcher destroyed. 06388_ Knocked back. 06389_ Acquired 9 matter. 06390_ Knocked back. 06392_ Lgt. Ion Engine destroyed. 06392_ Hrd. Medium Armor Plating destroyed. Map ----- +----------------------------------------------------+ | ????????????????????????????????????#""""""?# | | ??????????????????????????????????????"###??# | | ????????????????????????????????????????????# | | ????????????????????????????????????????????# | | ???????????????????????????????????????????## | | ???????????#######?????????????????????????#" | | ####???????#!!! "#?????????????????????????#" | | #""#??????# "#?????????????????????????#" | | ??????# "#?????????????????????????#" | | #????## ""#????????????####?????????#" | | #####" ""#???????????? """????????#" | | ## ""#????????????" """#???????## | | #" ##?????????????" #????????# | | # ###??????????"" #????????#" | | ???# ##?????????"" "#????????#" | | ???### #????????? ""?????????#" | | ##### % ###????????" "?????????##" | | !""" * % #????????# #????????##"" | | ## ;####???### ###?######"" | | ### ####;X# #"###""""""" | | !!### # """""" " "" | | """" #""#?# % "" """ " | | ####### ##?## ## " " | | ??????# #???###### | | ??????# #????????### %% | | ??????# #??????????##! @%% | | ??????# #???????????# | | ??????# #???????????## | | ??????# #????????????# """""" | | ??????? #????????????# ######""" | | ??????? ?????????????# ""##????#### | | ??????? ????????????##" """##????????? | | ??????? ????????????#""" """##?????????? | | ??????? ????????????#""" ""#??????????? | | ??????? ????????????#" ########??### | | ??????? ????????????# ## ####"" | | ????????????????????#" """" | | ????????????????????##" t | | ?????????????????????# | | ?????????????????????# | | ??????????????????????# " | | ??????????????????????#""" ""## ## | | ??????????????????????#"" ""#### ## | | ??????????????????????#" """"##??# #? | | ??????????????????????#""" """#??## ## | | ??????????????????????## ""##??# " | | ???????????????????????#"" """##???#" | | ???????????????????????##""" ##????#" | | ????????????????????????##"""" ##?????#!!"" | | ?????????????????????????### #??????###### | +----------------------------------------------------+ Best States ------------- Heat Dissipation 28 Energy Generation 18 Energy Capacity 150 Matter Stores 300 Matter Capacity 300 Sight Range 16 Terrain Scan Density 10 Armor Coverage 600 Evasion (%) 55 Targeting Accuracy 6 Recoil Reduction 2 Item Schematics ----------------- None Robot Schematics ------------------ None Fabricated ------------ Nothing Alien Tech Used ----------------- None Achievements -------------- None Challenges ------------ None Game ------ Seed RefineryAuthchipAccelerator Manual? 0 Play Time 00:25:34 Cumulative 340.8 hours Start 2022.05.13 @ 12:49:40 End 2022.05.13 @ 13:13:59 Sessions 1 Manual Loads 0 Difficulty Rogue Special Mode None Game No. 374 Rogue 374 Adventurer 0 Explorer 0 Win Type - Total 28 Types 17/3/2/1/2/0/3/0/0 Lore% 88 Gallery% 86 Achievement% 80 Wizard Run 0 Options --------- ASCII 0 Keyboard 0 Movement Arrows Keybinds 0 Fullscreen 2 Font 18/SmallcapsGlow Map View 76x50 Tactical HUD 1 Map Filters NONE Filters NONE Steam 1 RUN: e2a79c42-2aff-4123-bc49-1979c67d8818